bitfinex/quotes_SOLUSD_20240623
["timestamp","ask_amount","ask_price","bid_price","bid_amount"]
[1719134064522,7.426,135.0,134.99,100.0]
[1719134066015,14.8334,135.0,134.99,100.0]
[1719134066609,7.407,135.01,134.99,100.0]
[1719134067095,7.426,135.0,134.99,100.0]
[1719134069310,7.407,135.01,134.99,100.0]
[1719134070515,7.426,135.0,134.99,100.0]
[1719134070811,7.407,135.01,134.99,100.0]
[1719134071591,7.426,135.0,134.99,100.0]
[1719134078125,7.426,135.01,134.99,100.0]
[1719134079225,7.4064,135.02,134.99,100.0]
[1719134079710,7.426,135.01,134.99,100.0]
[1719134083222,7.4064,135.02,134.99,100.0]
[1719134083597,7.426,135.01,134.99,100.0]
[1719134084213,7.4064,135.02,134.99,100.0]
[1719134085223,7.426,135.01,134.99,100.0]
[1719134090122,14.8328,135.01,134.99,100.0]
[1719134091710,7.4068,135.01,134.99,100.0]
[1719134091921,14.8328,135.01,134.99,100.0]
[1719134093235,7.4068,135.01,134.99,100.0]
[1719134093438,14.8328,135.01,134.99,100.0]
[1719134095647,7.4068,135.01,134.99,100.0]
[1719134100250,35.1221,135.06,135.01,100.0]
[1719134100458,20.0,135.05,135.03,100.0]
[1719134100640,7.4052,135.04,135.03,100.0]
[1719134101222,14.8312,135.04,135.03,100.0]
[1719134101926,7.4052,135.04,135.03,100.0]
[1719134102432,14.8312,135.04,135.03,100.0]
[1719134104060,7.4052,135.04,135.03,100.0]
[1719134104229,14.8312,135.04,135.03,100.0]
[1719134106046,7.4052,135.04,135.03,100.0]
[1719134106248,14.8312,135.04,135.03,100.0]
[1719134106755,7.4052,135.04,135.03,100.0]
[1719134107953,14.8312,135.04,135.03,100.0]
[1719134115153,7.4052,135.04,135.03,100.0]
[1719134115359,14.8312,135.04,135.03,100.0]
[1719134115534,7.4052,135.04,135.03,100.0]
[1719134116254,14.8312,135.04,135.03,100.0]
[1719134119442,18.5133,135.04,135.01,100.0]
[1719134119647,7.4063,135.02,135.01,100.0]
[1719134120678,7.426,135.03,134.98,100.0]
[1719134120679,7.4074,135.0,134.98,100.0]
[1719134121127,7.407,135.01,134.98,100.0]
[1719134121851,7.407,135.01,134.96,7.4095]
[1719134121852,7.407,135.01,135.0,100.0]
[1719134122162,7.4064,135.02,135.0,100.0]
[1719134126173,7.4068,135.01,135.0,100.0]
[1719134131045,7.4065,135.02,135.0,100.0]
[1719134134774,14.8325,135.02,135.0,100.0]
[1719134137081,7.4065,135.02,135.0,100.0]
[1719134137258,14.8325,135.02,135.0,100.0]
[1719134147081,7.4065,135.02,135.0,100.0]
[1719134147280,14.8325,135.02,135.0,100.0]
[1719134153464,7.4065,135.02,135.0,100.0]
[1719134153872,14.8325,135.02,135.0,100.0]
[1719134161565,7.4065,135.02,135.0,100.0]
[1719134161763,14.8325,135.02,135.0,100.0]
[1719134166499,7.426,135.03,134.98,100.0]
[1719134166801,7.4074,135.0,134.98,100.0]
[1719134167210,7.407,135.01,134.98,100.0]
[1719134168972,7.4063,135.02,134.98,100.0]
[1719134169317,14.8323,135.02,134.99,1.47863047]
[1719134170383,14.8323,135.02,134.98,100.0]
[1719134174300,14.8323,135.02,135.0,100.0]
[1719134177300,7.4068,135.01,135.0,100.0]
[1719134178007,7.4068,135.01,134.98,100.0]
[1719134180109,7.4065,135.02,134.98,100.0]
[1719134180281,14.8325,135.02,134.98,100.0]
[1719134181907,14.8325,135.02,135.0,100.0]
[1719134191625,7.4065,135.02,135.0,100.0]
[1719134191805,14.8325,135.02,135.0,100.0]
[1719134208218,20.0,135.05,135.0,100.0]
[1719134208548,7.4055,135.04,135.0,100.0]
[1719134208720,20.0,135.03,135.0,100.0]
[1719134209342,34.8317,135.03,135.0,100.0]
[1719134210751,7.426,135.02,135.0,100.0]
[1719134213141,14.8323,135.02,135.0,100.0]
[1719134215851,7.426,135.02,134.98,100.0]
[1719134216253,7.4077,135.0,134.98,100.0]
[1719134219666,7.407,135.01,134.98,100.0]
[1719134243819,14.8324,135.02,134.98,100.0]
[1719134252145,7.4069,135.01,134.98,100.0]
[1719134253936,14.8325,135.02,134.98,100.0]
[1719134258545,7.4065,135.02,134.98,100.0]
[1719134258909,14.8325,135.02,134.98,100.0]
[1719134260023,7.407,135.01,134.96,107.4095]
[1719134260229,15.0816,134.99,134.92,100.0]
[1719134260572,7.4101,134.95,134.9,100.0]
[1719134260759,35.0816,134.94,134.88,100.0]
[1719134260970,7.4121,134.92,134.88,100.0]
[1719134261641,20.0,134.91,134.88,100.0]
[1719134263036,20.0,134.92,134.88,107.4139]
[1719134263232,20.0,134.93,134.88,107.4139]
[1719134263962,27.426,134.93,134.88,107.4139]
[1719134264539,20.0,134.93,134.88,107.4139]
[1719134264860,20.0,134.93,134.9,100.0]
[1719134265237,27.426,134.93,134.9,100.0]
[1719134265469,27.4113,134.93,134.9,100.0]
[1719134266046,34.8373,134.93,134.9,100.0]
[1719134267551,27.4113,134.93,134.9,100.0]
[1719134268466,34.8373,134.93,134.9,100.0]
[1719134268774,27.4113,134.93,134.9,100.0]
[1719134269587,34.8373,134.93,134.9,100.0]
[1719134271551,27.4113,134.93,134.9,100.0]
[1719134271751,7.4118,134.92,134.9,100.0]
[1719134271951,20.0,134.91,134.9,100.0]
[1719134280379,27.4123,134.91,134.9,100.0]
[1719134281466,7.4134,134.89,134.88,100.0]
[1719134281861,7.413,134.9,134.88,100.0]
[1719134282359,7.413,134.9,134.84,22.9432]
[1719134282360,7.4135,134.89,134.86,100.0]
[1719134282568,7.414,134.88,134.86,100.0]
[1719134282757,7.4136,134.89,134.86,100.0]
[1719134285775,20.0,134.88,134.86,100.0]
[1719134285976,7.4137,134.89,134.86,100.0]
[1719134286167,20.0,134.88,134.86,100.0]
[1719134287758,36.5966,134.88,134.83,100.0]
[1719134287958,36.5966,134.88,134.82,37.854575]
[1719134288180,7.4153,134.86,134.81,100.0]
[1719134288484,20.0,134.85,134.81,107.4177]
[1719134288661,20.0,134.85,134.83,100.0]
[1719134288860,20.0,134.86,134.83,107.4167]
[1719134289089,20.0,134.87,134.83,107.4167]
[1719134289584,20.0,134.87,134.83,100.0]
[1719134290489,27.4147,134.87,134.83,100.0]
[1719134291374,7.4153,134.86,134.83,100.0]
[1719134291672,20.0,134.85,134.83,100.0]
[1719134294577,27.4157,134.85,134.83,100.0]
[1719134294780,7.4157,134.85,134.83,100.0]
[1719134295078,20.0,134.84,134.83,100.0]
[1719134311900,7.4143,134.88,134.83,100.0]
[1719134312094,27.4146,134.87,134.83,100.0]
[1719134313005,27.4146,134.87,134.84,1.18995556]
[1719134313715,27.4146,134.87,134.85,100.0]
[1719134313895,34.8446,134.87,134.85,100.0]
[1719134314095,20.0,134.87,134.85,100.0]
[1719134314297,20.0,134.9,134.85,100.0]
[1719134314594,7.4143,134.88,134.85,100.0]
[1719134314924,7.43,134.87,134.85,100.0]
[1719134315703,20.0,134.9,134.85,100.0]
[1719134316003,7.4137,134.89,134.85,100.0]
[1719134316199,20.0,134.88,134.85,100.0]
[1719134316399,34.8441,134.88,134.85,100.0]
[1719134317495,27.4141,134.88,134.85,100.0]
[1719134317695,34.8441,134.88,134.85,100.0]
[1719134318626,27.43,134.88,134.85,100.0]
[1719134321131,20.0,134.88,134.85,100.0]
[1719134321334,20.0,134.9,134.86,7.4149]
[1719134321508,20.0,134.9,134.87,107.4144]
[1719134321708,20.0,134.91,134.87,107.4144]
[1719134322243,20.0,134.91,134.87,100.0]
[1719134324235,20.0,134.91,134.89,100.0]
[1719134324540,14.8418,134.92,134.89,100.0]
[1719134326135,7.43,134.92,134.91,100.0]
[1719134326338,27.43,134.92,134.91,100.0]
[1719134327220,7.43,134.92,134.91,100.0]
[1719134327646,27.43,134.92,134.91,100.0]
[1719134328234,7.43,134.92,134.91,100.0]
[1719134328418,254.0,135.01,134.91,100.0]
[1719134328419,7.4106,134.95,134.91,100.0]
[1719134328622,20.0,134.94,134.91,100.0]
[1719134329230,20.0,134.94,134.93,100.0]
[1719134330242,7.4097,134.96,134.93,100.0]
[1719134330531,20.0,134.95,134.93,100.0]
[1719134336357,14.8397,134.96,134.93,100.0]
[1719134339463,20.0,134.95,134.93,100.0]
[1719134342668,7.4088,134.98,134.95,100.0]
[1719134342839,20.0,134.97,134.95,100.0]
[1719134343969,27.409,134.97,134.95,100.0]
[1719134345769,20.0,134.97,134.95,100.0]
[1719134346771,27.43,134.97,134.91,100.0]
[1719134346957,20.0,134.97,134.91,100.0]
[1719134347265,20.0,134.98,134.91,100.0]
[1719134347458,7.4103,134.95,134.93,100.0]
[1719134348254,14.8397,134.96,134.93,100.0]
[1719134348462,20.0,134.95,134.93,100.0]
[1719134351171,20.0,134.96,134.93,100.0]
[1719134351674,20.0,134.97,134.93,100.0]
[1719134352443,20.0,134.97,134.95,100.0]
[1719134352866,27.4092,134.97,134.95,100.0]
[1719134354865,7.4096,134.96,134.95,100.0]
[1719134355057,7.4102,134.95,134.93,100.0]
[1719134357954,14.8397,134.96,134.93,100.0]
[1719134358255,20.0,134.95,134.93,100.0]
[1719134362646,27.43,134.96,134.93,100.0]
[1719134364159,20.0,134.96,134.93,100.0]
[1719134365576,27.43,134.96,134.93,100.0]
[1719134370587,20.0,134.96,134.93,100.0]
[1719134370768,27.43,134.96,134.93,100.0]
[1719134371763,20.0,134.96,134.93,100.0]
[1719134372078,27.43,134.96,134.93,100.0]
[1719134372561,18.5169,135.02,134.95,100.0]
[1719134372883,7.4074,135.0,134.95,107.4098]
[1719134373084,7.4079,134.99,134.95,100.0]
[1719134373663,14.8379,134.99,134.95,100.0]
[1719134374162,7.43,134.99,134.95,100.0]
[1719134374371,20.0,134.98,134.95,100.0]
[1719134376088,27.43,134.99,134.95,100.0]
[1719134377573,20.0,134.99,134.91,100.0]
[1719134377893,7.4099,134.96,134.91,100.0]
[1719134378067,20.0,134.95,134.91,100.0]
[1719134378476,20.0,134.95,134.91,107.412]
[1719134378673,27.43,134.96,134.91,107.412]
[1719134383691,34.8398,134.96,134.9,7.4128]
[1719134384585,34.8398,134.96,134.91,107.4123]
[1719134384893,27.43,134.96,134.91,107.4123]
[1719134387472,34.8396,134.96,134.91,107.4123]
[1719134387676,27.4096,134.96,134.91,107.4123]
[1719134388605,34.8396,134.96,134.91,107.4123]
[1719134393787,34.8396,134.96,134.91,100.0]
[1719134398520,27.4096,134.96,134.91,100.0]
[1719134398688,34.8396,134.96,134.91,100.0]
[1719134400323,7.4102,134.95,134.91,100.0]
[1719134400487,20.0,134.94,134.91,100.0]
[1719134402622,27.4107,134.94,134.89,107.4134]
[1719134403411,20.0,134.94,134.89,107.4134]
[1719134404209,20.0,134.94,134.91,100.0]
[1719134406519,20.0,134.94,134.91,107.4123]
[1719134406696,14.8397,134.96,134.91,107.4123]
[1719134407019,20.0,134.95,134.91,107.4123]
[1719134407227,20.0,134.95,134.91,100.0]
[1719134409215,27.4101,134.95,134.91,100.0]
[1719134412626,7.4107,134.94,134.91,100.0]
[1719134412939,20.0,134.93,134.91,100.0]
[1719134424137,20.0,134.93,134.89,100.0]
[1719134425233,20.0,134.93,134.89,107.4134]
[1719134425537,27.43,134.93,134.89,107.4134]
[1719134442925,20.0,134.93,134.89,107.4134]
[1719134443947,27.43,134.93,134.89,107.4134]
[1719134444144,20.0,134.93,134.88,7.4137]
[1719134444354,27.4113,134.93,134.88,7.4137]
[1719134445253,34.8413,134.93,134.88,7.4137]
[1719134446049,7.4119,134.92,134.87,100.0]
[1719134446346,20.0,134.91,134.87,100.0]
[1719134448652,20.0,134.91,134.87,7.4145]
[1719134449847,15.9656,134.9,134.86,7.4149]
[1719134450151,20.0,134.89,134.86,7.4149]
[1719134451453,20.0,134.89,134.85,107.4154]
[1719134453958,20.0,134.89,134.84,7.416]
[1719134454256,27.4135,134.89,134.84,7.416]
[1719134454465,7.43,134.88,134.84,7.416]
[1719134454753,20.0,134.87,134.84,7.416]
[1719134454955,7.43,134.88,134.84,7.416]
[1719134455157,20.0,134.87,134.83,107.4167]
[1719134456070,27.43,134.87,134.83,107.4167]
[1719134457564,27.43,134.87,134.83,100.0]
[1719134457749,34.8445,134.87,134.83,100.0]
[1719134459853,27.43,134.87,134.83,100.0]
[1719134460670,27.43,134.87,134.82,7.4171]
[1719134460891,23.3959,134.86,134.81,137.8795167]
[1719134461051,20.0,134.85,134.81,137.8795167]
[1719134471986,27.4157,134.85,134.81,137.8795167]
[1719134479794,26.9157,134.85,134.81,137.8795167]
[1719134480410,7.4162,134.84,134.8,37.10687514]
[1719134480694,7.43,134.83,134.8,37.10687514]
[1719134484796,7.43,134.84,134.8,37.10687514]
[1719134485005,27.43,134.83,134.8,37.10687514]
[1719134485171,7.43,134.83,134.8,37.10687514]
[1719134486104,7.43,134.84,134.8,37.10687514]
[1719134486302,27.43,134.83,134.8,37.10687514]
[1719134496299,27.43,134.84,134.8,37.10687514]
[1719134498019,7.43,134.83,134.8,37.10687514]
[1719134509413,27.4163,134.84,134.8,37.10687514]
[1719134514504,26.9163,134.84,134.8,37.10687514]
[1719134536045,26.9163,134.84,134.79,100.0]
[1719134536046,19.5,134.84,134.81,137.8795167]
[1719134537732,26.9162,134.84,134.81,137.8795167]
[1719134538353,7.4167,134.83,134.8,37.10687514]
[1719134541354,26.9164,134.84,134.8,37.10687514]
[1719134552464,7.4167,134.83,134.8,37.10687514]
[1719134553365,26.9164,134.84,134.8,37.10687514]
[1719134555970,19.5,134.84,134.8,37.10687514]
[1719134557281,26.9162,134.84,134.8,37.10687514]
[1719134576612,34.3522,134.84,134.8,37.10687514]
[1719134579655,26.9162,134.84,134.8,37.10687514]
[1719134579918,34.3522,134.84,134.8,37.10687514]
[1719134580087,26.9162,134.84,134.8,37.10687514]
[1719134581000,34.3522,134.84,134.8,37.10687514]
[1719134581720,26.936,134.84,134.8,37.10687514]
[1719134582220,34.3522,134.84,134.8,37.10687514]
[1719134582388,26.9162,134.84,134.8,37.10687514]
[1719134582588,34.3522,134.84,134.8,37.10687514]
[1719134584589,26.9162,134.84,134.8,37.10687514]
[1719134584889,34.3522,134.84,134.8,37.10687514]
[1719134587624,34.3522,134.84,134.8,37.10687514]
[1719134590622,26.9162,134.84,134.8,37.10687514]
[1719134598022,19.5,134.84,134.8,37.10687514]
[1719134598228,19.5,134.84,134.81,100.0]
[1719134599822,19.5,134.84,134.81,137.8795167]
[1719134601937,26.9163,134.84,134.81,137.8795167]
[1719134612457,7.4167,134.83,134.81,37.8795167]
[1719134613549,26.9164,134.84,134.81,37.8795167]
[1719134617348,19.5,134.84,134.81,37.8795167]
[1719134624858,26.9162,134.84,134.81,37.8795167]
[1719134637581,19.5,134.84,134.81,137.8795167]
[1719134637873,20.0,134.85,134.81,116.6062]
[1719134638579,27.436,134.85,134.81,116.6062]
[1719134639583,20.0,134.85,134.81,116.6062]
[1719134639769,27.436,134.85,134.81,116.6062]
[1719134640875,34.8516,134.85,134.81,116.6062]
[1719134641379,27.4156,134.85,134.81,116.6062]
[1719134641583,34.8516,134.85,134.81,116.6062]
[1719134641793,27.4156,134.85,134.81,116.6062]
[1719134643182,34.8516,134.85,134.81,116.6062]
[1719134651084,27.4156,134.85,134.81,116.6062]
[1719134651388,34.8516,134.85,134.81,116.6062]
[1719134658587,27.436,134.85,134.81,116.6062]
[1719134661465,20.0,134.85,134.81,116.6062]
[1719134662690,27.416,134.85,134.81,16.6062]
[1719134662866,34.852,134.85,134.81,16.6062]
[1719134665876,27.436,134.85,134.81,16.6062]
[1719134666206,27.436,134.85,134.81,116.6062]
[1719134666897,20.0,134.85,134.81,116.6062]
[1719134667302,27.436,134.85,134.81,116.6062]
[1719134671901,20.0,134.85,134.81,116.6062]
[1719134672213,27.436,134.85,134.81,116.6062]
[1719134672383,20.0,134.85,134.81,116.6062]
[1719134673826,27.436,134.85,134.81,116.6062]
[1719134675925,27.436,134.85,134.81,16.6062]
[1719134676430,34.8518,134.85,134.81,16.6062]
[1719134676926,27.4158,134.85,134.81,16.6062]
[1719134677243,34.8518,134.85,134.81,16.6062]
[1719134680631,27.436,134.85,134.81,16.6062]
[1719134684010,27.436,134.85,134.81,24.0239]
[1719134684533,20.0,134.85,134.81,24.0239]
[1719134691218,20.0,134.86,134.81,24.0239]
[1719134691424,27.436,134.86,134.81,24.0239]
[1719134691716,34.8511,134.86,134.81,24.0239]
[1719134696668,34.8511,134.86,134.81,16.6062]
[1719134710941,14.8517,134.85,134.81,16.6062]
[1719134711175,20.0,134.84,134.81,16.6062]
[1719134721717,27.4163,134.84,134.81,16.6062]
[1719134722221,7.4167,134.83,134.8,6.1548]
[1719134722437,20.0,134.82,134.8,6.1548]
[1719134723021,20.0,134.83,134.8,6.1548]
[1719134725251,27.4167,134.83,134.78,23.6545]
[1719134725445,27.4167,134.83,134.78,16.2354]
[1719134726031,7.4173,134.82,134.78,16.2354]
[1719134726232,20.0,134.81,134.78,16.2354]
[1719134726969,20.0,134.82,134.78,16.2354]
[1719134728251,20.0,134.82,134.78,23.6548]
[1719134732656,7.4178,134.81,134.76,6.6182]
[1719134732846,35.0248,134.8,134.75,53.17126772]
[1719134736856,7.419,134.79,134.75,53.17126772]
[1719134737055,20.0,134.78,134.75,53.17126772]
[1719134759206,27.4195,134.78,134.75,53.17126772]
[1719134765217,20.0,134.78,134.75,53.17126772]
[1719134765427,20.0,134.77,134.75,53.17126772]
[1719134765606,20.0,134.79,134.75,53.17126772]
[1719134765903,27.419,134.79,134.75,53.17126772]
[1719134768827,7.4195,134.78,134.75,53.17126772]
[1719134769115,20.0,134.77,134.75,53.17126772]
[1719134774134,27.436,134.77,134.75,53.17126772]
[1719134775510,7.436,134.77,134.75,53.17126772]
[1719134776316,7.436,134.78,134.75,53.17126772]
[1719134777838,27.436,134.77,134.75,53.17126772]
[1719134779137,20.0,134.77,134.75,53.17126772]
[1719134779319,20.0,134.79,134.75,53.17126772]
[1719134779514,7.436,134.78,134.75,53.17126772]
[1719134779838,20.0,134.77,134.75,53.17126772]
[1719134780226,20.0,134.78,134.75,53.17126772]
[1719134781043,7.436,134.77,134.75,53.17126772]
[1719134786965,20.0,134.78,134.75,53.17126772]
[1719134787463,27.436,134.78,134.75,53.17126772]
[1719134791969,27.4196,134.78,134.75,53.17126772]
[1719134792265,7.436,134.77,134.75,53.17126772]
[1719134795071,27.4196,134.78,134.75,53.17126772]
[1719134795262,7.436,134.77,134.75,53.17126772]
[1719134799471,20.0,134.78,134.75,53.17126772]
[1719134799674,27.436,134.78,134.75,53.17126772]
[1719134802773,20.0,134.78,134.75,53.17126772]
[1719134802967,7.436,134.77,134.75,53.17126772]
[1719134804795,7.436,134.77,134.75,37.32946772]
[1719134805388,7.436,134.77,134.74,37.60178355]
[1719134810897,27.4195,134.78,134.74,37.60178355]
[1719134811097,20.0,134.78,134.74,37.60178355]
[1719134814681,20.0,134.78,134.73,13.9183912]
[1719134820227,27.436,134.78,134.73,13.9183912]
[1719134823824,27.436,134.78,134.74,7.4216]
[1719134825024,20.0,134.78,134.74,7.4216]
[1719134825223,27.436,134.78,134.74,7.4216]
[1719134825914,27.436,134.78,134.73,13.9183912]
[1719134827314,20.0,134.78,134.74,7.4216]
[1719134827494,27.436,134.78,134.74,7.4216]
[1719134828524,27.436,134.78,134.75,0.47827237]
[1719134828817,27.436,134.78,134.74,0.47827237]
[1719134829827,27.4195,134.78,134.74,0.47827237]
[1719134830024,7.436,134.77,134.74,100.0]
[1719134830203,27.4195,134.78,134.74,100.0]
[1719134830405,7.42,134.77,134.73,6.4963912]
[1719134831712,7.42,134.77,134.73,0.1021912]
[1719134834329,27.4197,134.78,134.73,0.1021912]
[1719134834739,27.4197,134.78,134.73,7.5243912]
[1719134836033,20.0,134.78,134.73,7.5243912]
[1719134836213,20.0,134.78,134.74,100.0]
[1719134843347,20.0,134.78,134.74,107.4213]
[1719134849943,7.4181,134.81,134.76,100.0]
[1719134850129,14.8534,134.82,134.78,100.0]
[1719134850436,20.0,134.81,134.78,100.0]
[1719134850636,14.8534,134.82,134.78,100.0]
[1719134851230,7.436,134.82,134.8,100.0]
[1719134852323,7.436,134.83,134.8,100.0]
[1719134854558,7.436,134.82,134.8,100.0]
[1719134855617,15.4616,134.86,134.8,100.0]
[1719134855618,7.436,134.83,134.8,100.0]
[1719134856553,7.436,134.82,134.8,100.0]
[1719134856724,7.4158,134.85,134.8,107.4183]
[1719134856928,7.436,134.83,134.8,107.4183]
[1719134857615,20.0,134.84,134.8,107.4183]
[1719134857849,7.436,134.83,134.8,107.4183]
[1719134860068,27.436,134.84,134.8,107.4183]
[1719134863552,20.0,134.84,134.8,107.4183]
[1719134863744,7.436,134.84,134.8,107.4183]
[1719134864346,20.0,134.85,134.77,18.55]
[1719134864347,20.0,134.85,134.79,7.4188]
[1719134865454,14.8526,134.84,134.78,107.4192]
[1719134865630,7.4171,134.83,134.78,100.0]
[1719134865948,27.4172,134.82,134.77,7.4199]
[1719134867431,34.8532,134.82,134.77,7.4199]
[1719134870361,27.436,134.82,134.77,7.4199]
[1719134871353,20.0,134.82,134.78,7.4194]
[1719134871541,27.436,134.82,134.78,7.4194]
[1719134872440,20.0,134.82,134.78,7.4194]
[1719134872765,27.438,134.82,134.78,7.4194]
[1719134873937,49.9827,134.82,134.75,18.5528]
[1719134874453,35.1273,134.82,134.75,18.5528]
[1719134875264,42.5653,134.82,134.75,18.5528]
[1719134875455,42.5653,134.82,134.78,7.419]
[1719134877483,35.1273,134.82,134.77,7.4198]
[1719134877645,42.5653,134.82,134.77,7.4198]
[1719134878675,49.9827,134.82,134.77,7.4198]
[1719134879367,7.4179,134.81,134.76,7.4205]
[1719134879567,20.0,134.8,134.76,7.4205]
[1719134880498,27.4184,134.8,134.75,7.4209]
[1719134883303,20.0,134.8,134.75,7.4209]
[1719134884599,20.0,134.8,134.76,7.4205]
[1719134885090,20.0,134.81,134.76,7.4205]
[1719134885269,27.4178,134.81,134.76,7.4205]
[1719134885899,20.0,134.81,134.77,7.4199]
[1719134889605,20.0,134.81,134.76,7.4203]
[1719134889814,27.4179,134.81,134.76,7.4203]
[1719134890110,27.4179,134.81,134.75,7.4209]
[1719134890822,27.4179,134.81,134.76,7.4205]
[1719134891193,20.0,134.81,134.77,7.42]
[1719134892219,7.438,134.8,134.77,7.42]
[1719134893210,7.438,134.8,134.76,7.4205]
[1719134893417,27.4178,134.81,134.76,7.4205]
[1719134894425,7.438,134.8,134.76,7.4205]
[1719134894597,27.4178,134.81,134.76,7.4205]
[1719134895620,7.438,134.8,134.76,7.4205]
[1719134898533,7.438,134.8,134.73,0.1021912]
[1719134898724,27.438,134.79,134.74,7.4211]
[1719134902645,34.8569,134.79,134.74,7.4211]
[1719134908739,27.438,134.79,134.74,7.4211]
[1719134909322,20.0,134.79,134.75,7.421]
[1719134909548,20.0,134.8,134.75,7.421]
[1719134909928,7.438,134.79,134.75,7.421]
[1719134910128,20.0,134.78,134.75,7.421]
[1719134911733,20.0,134.78,134.74,107.4215]
[1719134920064,20.0,134.78,134.74,100.0]
[1719134922871,27.4195,134.78,134.74,100.0]
[1719134924576,27.4195,134.78,134.73,0.1021912]
[1719134924577,7.42,134.77,134.73,0.1021912]
[1719134926807,27.4196,134.78,134.73,0.1021912]
[1719134927893,27.4196,134.78,134.73,7.5243912]
[1719134931899,20.0,134.78,134.73,7.5243912]
[1719134932776,20.0,134.78,134.74,7.4216]
[1719134934099,20.0,134.78,134.75,7.4209]
[1719134935497,20.0,134.78,134.74,107.4214]
[1719134936100,20.0,134.79,134.74,107.4214]
[1719134936704,27.4189,134.79,134.74,107.4214]
[1719134937395,34.8569,134.79,134.74,100.0]
[1719134940211,34.8569,134.79,134.73,7.5241912]
[1719134943209,34.8569,134.79,134.74,7.4215]
[1719134944107,27.438,134.79,134.74,7.4215]
[1719134944296,20.0,134.79,134.75,7.4207]
[1719134944497,7.438,134.8,134.75,7.4207]
[1719134944799,20.0,134.79,134.75,7.4207]
[1719134945492,20.0,134.8,134.75,7.4207]
[1719134945694,34.8564,134.8,134.75,7.4207]
[1719134946099,27.438,134.8,134.75,7.4207]
[1719134946712,20.0,134.8,134.76,107.4204]
[1719134947018,27.438,134.81,134.76,107.4204]
[1719134947194,27.438,134.81,134.77,7.4199]
[1719134948313,27.438,134.81,134.76,107.4204]
[1719134948695,20.0,134.81,134.76,107.4204]
[1719134948894,27.418,134.81,134.76,100.0]
[1719134951426,7.438,134.8,134.76,107.4205]
[1719134951918,7.438,134.8,134.75,7.4209]
[1719134953597,7.438,134.8,134.76,7.4205]
[1719134956931,20.0,134.81,134.76,7.4205]
[1719134957413,7.438,134.8,134.76,7.4205]
[1719134960022,27.438,134.81,134.77,7.42]
[1719134964149,27.438,134.81,134.76,7.4203]
[1719134964361,20.0,134.81,134.76,7.4203]
[1719134964526,7.438,134.8,134.76,7.4203]
[1719134966351,27.438,134.81,134.76,7.4203]
[1719134971329,27.4178,134.81,134.74,100.0]
[1719134971530,7.438,134.8,134.75,7.4206]
[1719134971727,20.0,134.79,134.76,7.4205]
[1719134971949,27.4179,134.81,134.76,7.4205]